bitfinex-derivatives/quotes_ETHF0:USTF0_20250501
["timestamp","ask_amount","ask_price","bid_price","bid_amount"]
[1746067619342,3.53172,1814.0,1813.9,1.6713]
[1746067620242,7.31972,1814.0,1813.9,1.6713]
[1746067620443,3.788,1814.0,1813.9,2.77384]
[1746067621342,1.10248,1814.0,1813.9,1.6713]
[1746067622545,1.10245,1814.1,1813.9,2.77379]
[1746067623047,1.10245,1814.1,1814.0,1.7225]
[1746067623438,4.31025,1814.1,1814.0,1.7225]
[1746067624437,1.10254,1813.9,1813.8,1.6462]
[1746067624742,1.10254,1813.9,1813.8,3.3687]
[1746067626550,4.31034,1813.9,1813.8,1.7225]
[1746067626751,10.36874,1813.9,1813.8,1.7225]
[1746067626946,1.10266,1813.7,1813.6,43.59841]
[1746067627146,1.10266,1813.7,1813.6,45.26051]
[1746067627348,1.10278,1813.5,1813.4,7.31443332]
[1746067627544,1.10278,1813.5,1813.4,8.97653332]
[1746067627744,4.31058,1813.5,1813.4,8.97653332]
[1746067627944,5.94648,1813.5,1813.4,8.97653332]
[1746067628150,9.73448,1813.5,1813.4,8.97653332]
[1746067628348,4.89078,1813.5,1813.4,8.97653332]
[1746067629154,1.10278,1813.5,1813.4,8.97653332]
[1746067629452,4.70577,1813.6,1813.4,10.07937332]
[1746067629653,4.70577,1813.6,1813.5,1.5981]
[1746067630453,3.603,1813.6,1813.5,1.5981]
[1746067630649,3.603,1813.6,1813.5,2.70088]
[1746067630858,3.2078,1813.7,1813.6,1.10272]
[1746067631057,3.2078,1813.7,1813.6,3.56602]
[1746067631258,4.31046,1813.7,1813.6,1.5981]
[1746067631455,3.2078,1813.7,1813.6,2.70082]
[1746067631657,3.603,1813.8,1813.7,1.10261]
[1746067631953,3.603,1813.8,1813.7,3.53591]
[1746067632552,9.15027783,1813.9,1813.8,1.1026]
[1746067632852,9.15027783,1813.9,1813.8,3.5362]
[1746067633252,10.25281783,1813.9,1813.8,2.4336]
[1746067633852,9.15027783,1813.9,1813.8,3.5362]
[1746067634457,10.25281783,1813.9,1813.8,2.4336]
[1746067634757,1.10254,1813.9,1813.8,2.4336]
[1746067635353,1.10254,1813.9,1813.8,3.5362]
[1746067635656,1.1025,1814.0,1813.8,3.5362]
[1746067635856,1.1025,1814.0,1813.9,1.5769]
[1746067636252,1.1025,1814.0,1813.9,42.3769]
[1746067637258,1.10254,1813.9,1813.8,0.8318]
[1746067637455,1.95994,1813.9,1813.8,2.4087]
[1746067637649,1.95994,1813.9,1813.8,43.2087]
[1746067637855,2.83793,1814.0,1813.8,44.3113]
[1746067638357,2.83793,1814.0,1813.9,1.6989]
[1746067639160,6.62593,1814.0,1813.9,1.6989]
[1746067640559,1.51427783,1814.4,1814.3,1.10229]
[1746067640757,10.9803334,1814.7,1814.6,1.10211]
[1746067640951,10.9803334,1814.7,1814.6,4.30991]
[1746067641155,10.9803334,1814.7,1814.6,12.91291]
[1746067641556,10.9803334,1814.7,1814.6,55.34541]
[1746067642665,1.10189,1815.0,1814.6,54.2433]
[1746067642855,1.10189,1815.0,1814.7,1.6325]
[1746067643063,1.10189,1815.0,1814.9,1.10193]
[1746067643260,2.83715,1815.1,1814.9,1.10193]
[1746067643460,2.83715,1815.1,1815.0,1.6325]
[1746067645164,1.7353,1815.1,1814.7,0.8509]
[1746067645361,1.10195,1814.9,1814.7,3.55903]
[1746067645765,4.30971,1815.0,1814.7,3.55903]
[1746067646251,4.30971,1815.0,1814.8,1.10199]
[1746067647464,1.10191,1815.0,1814.9,1.5823]
[1746067648165,4.88991,1815.0,1814.9,1.5823]
[1746067649064,8.09771,1815.0,1814.9,1.5823]
[1746067649765,8.90251,1815.0,1814.9,1.5823]
[1746067650067,8.90251,1815.0,1814.8,1.10199]
[1746067650266,1.6246,1814.9,1814.8,1.10199]
[1746067651265,1.6246,1814.9,1814.6,44.0078]
[1746067651462,5.16233,1814.8,1814.6,41.90211]
[1746067651658,3.2078,1814.8,1814.7,1.10205]
[1746067651968,3.2078,1814.8,1814.7,2.75625]
[1746067653763,0.8525,1815.1,1815.0,1.10187]
[1746067654071,5.335,1815.2,1815.1,1.10181]
[1746067654271,6.43675,1815.2,1815.1,1.10181]
[1746067654963,4.70375,1815.2,1815.1,2.71031]
[1746067655468,3.602,1815.2,1815.1,2.71031]
[1746067656869,4.70375,1815.2,1815.1,2.71031]
[1746067658468,3.602,1815.2,1815.1,2.71031]
[1746067660968,11.19534,1815.4,1815.3,1.10169]
[1746067661170,11.19534,1815.4,1815.2,2.72972]
[1746067661971,7.59634,1815.4,1815.2,2.72972]
[1746067662172,1.63,1815.3,1815.2,2.72972]
[1746067662572,2.73169,1815.3,1815.2,2.72972]
[1746067662760,2.73169,1815.3,1815.2,1.628]
[1746067662964,2.73169,1815.3,1815.2,2.72975]
[1746067663361,1.10175,1815.2,1815.1,1.10176]
[1746067663567,2.76425,1815.2,1815.1,2.80906]
[1746067664166,1.6625,1815.2,1815.1,2.80906]
[1746067667171,8.4637,1815.4,1815.2,1.1017]
[1746067667373,1.10169,1815.3,1815.2,1.6589]
[1746067667675,1.10169,1815.3,1815.2,2.76065]
[1746067667868,2.67079,1815.3,1815.2,2.76065]
[1746067669674,2.67079,1815.3,1815.2,5.5152]
[1746067670579,2.67079,1815.3,1815.2,6.61695]
[1746067671975,2.67079,1815.3,1815.2,5.5152]
[1746067673175,2.75437,1815.2,1814.6,44.0078]
[1746067673373,1.10193,1814.9,1814.8,1.7243]
[1746067675877,1.10193,1814.9,1814.8,2.82629]
[1746067676072,1.10193,1814.9,1814.8,1.7243]
[1746067676274,2.71033,1814.9,1814.8,1.7243]
[1746067676473,1.96271,1815.0,1814.8,2.82629]
[1746067676778,1.10193,1814.9,1814.8,2.82629]
[1746067676978,1.10193,1814.9,1814.7,2.71391]
[1746067677168,1.10193,1814.9,1814.8,1.10199]
[1746067677367,1.10193,1814.9,1814.7,1.6119]
[1746067677567,1.10193,1814.9,1814.7,2.71391]
[1746067677985,1.10199,1814.8,1814.7,1.6119]
[1746067678276,1.10205,1814.7,1814.6,41.90211]
[1746067680782,1.10205,1814.7,1814.6,40.8]
[1746067681176,1.10211,1814.6,1814.5,2.81903]
[1746067681479,2.7556,1814.4,1814.0,4.31024]
[1746067681772,1.10241,1814.2,1814.1,42.5322]
[1746067682275,4.31021,1814.2,1814.1,40.8]
[1746067682481,5.88651,1814.2,1814.1,40.8]
[1746067683481,1.10254,1813.9,1813.8,1.7322]
[1746067683878,1.10254,1813.9,1813.8,43.6348]
[1746067684073,1.10254,1813.9,1813.8,42.5322]
[1746067685075,1.6369,1814.0,1813.8,42.5322]
[1746067685076,2.73942,1814.0,1813.8,43.6348]
[1746067685980,1.10245,1814.1,1813.9,1.10254]
[1746067686382,1.1025,1814.0,1813.8,43.63477]
[1746067686576,1.10254,1813.9,1813.8,42.5322]
[1746067687181,1.10254,1813.9,1813.8,46.3202]
[1746067687386,1.10254,1813.9,1813.8,3.788]
[1746067687680,4.70054,1813.9,1813.8,3.788]
[1746067687881,7.19244,1813.9,1813.8,3.788]
[1746067688176,1.10266,1813.7,1813.6,40.8]
[1746067690886,1.1029,1813.4,1813.1,14.73299762]
[1746067691180,1.1029,1813.4,1813.2,1.10294]
[1746067691380,7.70376,1813.5,1813.1,15.83600762]
[1746067691582,1.10296,1813.2,1813.1,14.73299762]
[1746067691879,1.10296,1813.2,1813.1,49.70629762]
[1746067692182,1.10296,1813.2,1813.1,42.4201]
[1746067692882,1.10296,1813.2,1813.1,44.0308]
[1746067693478,1.10296,1813.2,1813.1,42.4107]
[1746067693677,3.48766,1813.2,1813.1,42.4107]
[1746067693879,3.48766,1813.2,1813.1,1.6107]
[1746067694277,4.70195,1813.3,1813.1,1.6107]
[1746067694494,3.599,1813.3,1813.1,43.51371]
[1746067694786,3.599,1813.3,1813.2,1.6501]
[1746067694979,3.599,1813.3,1813.2,3.3806]
[1746067695187,6.8078,1813.5,1813.3,1.10289]
[1746067695383,6.8078,1813.5,1813.4,1.7305]
[1746067695778,6.8078,1813.5,1813.4,2.83334]
[1746067696077,6.8078,1813.5,1813.4,1.7305]
[1746067696382,6.8078,1813.5,1813.4,2.83334]
[1746067696679,6.8078,1813.5,1813.4,1.7305]
[1746067696873,3.6,1813.6,1813.4,1.7305]
[1746067697081,3.6,1813.6,1813.5,1.10278]
[1746067697278,1.10262,1813.8,1813.4,6.62129]
[1746067697585,1.10262,1813.8,1813.5,1.10277]
[1746067697783,6.41108,1813.9,1813.6,3.6496]
[1746067698085,6.41108,1813.9,1813.7,1.7143]
[1746067698284,6.41108,1813.9,1813.7,2.81696]
[1746067698487,1.7085,1813.9,1813.7,2.81696]
[1746067699188,6.8078,1814.0,1813.8,1.1026]
[1746067699398,7.91028,1814.0,1813.9,1.6239]
[1746067699683,3.2078,1814.0,1813.9,2.72644]
[1746067702487,4.31028,1814.0,1813.9,1.6239]
[1746067702688,3.2078,1814.0,1813.9,1.6239]
[1746067702891,3.2078,1814.0,1813.9,2.72644]
[1746067703188,4.31028,1814.0,1813.9,2.72644]
[1746067703588,3.2078,1814.0,1813.9,2.72644]
[1746067704194,4.8042,1814.0,1813.9,2.72644]
[1746067704491,4.8042,1814.0,1813.8,0.8362]
[1746067704793,1.5964,1813.9,1813.8,3.62688]
[1746067705991,3.9968,1814.0,1813.9,1.10254]
[1746067706189,5.6374,1814.0,1813.9,2.80624]
[1746067708387,3.2078,1814.0,1813.9,2.80624]
[1746067709683,3.2078,1814.0,1813.9,3.62614]
[1746067710895,4.31028,1814.0,1813.9,3.62614]
[1746067711393,3.2078,1814.0,1813.9,3.62614]
[1746067711687,3.2078,1814.0,1813.4,6.35711]
[1746067711995,2.3739,1813.9,1813.6,1.7023]
[1746067712195,1.581,1813.8,1813.7,1.10266]
[1746067712996,1.581,1813.8,1813.7,3.30806]
[1746067713389,2.6836,1813.8,1813.7,3.30806]
[1746067713585,1.581,1813.8,1813.7,3.30806]
[1746067714289,2.6836,1813.8,1813.7,2.2054]
[1746067714491,6.6906,1813.8,1813.7,2.2054]
[1746067716408,2.75672,1813.7,1813.2,1.10293]
[1746067716699,1.1029,1813.3,1813.2,1.5888]
[1746067717693,3.6494,1813.3,1813.2,1.5888]
[1746067718092,1.10296,1813.2,1813.1,40.8]
[1746067718290,2.80866,1813.2,1813.1,40.8]
[1746067721504,2.80866,1813.2,1813.1,42.3885]
[1746067722394,1.7057,1813.2,1813.1,42.3885]
[1746067722593,2.80866,1813.2,1813.1,42.3885]
[1746067723000,1.10296,1813.2,1813.1,42.3885]
[1746067724096,3.2078,1813.3,1813.1,42.3885]
[1746067724295,1.1029,1813.3,1813.2,1.6604]
[1746067724702,5.50827,1813.4,1813.2,1.6604]
[1746067725001,3.2078,1813.5,1813.4,1.10284]
[1746067725201,1.10261,1813.8,1813.6,1.10267]
[1746067725500,1.10261,1813.8,1813.7,1.6604]
[1746067725803,1.10261,1813.8,1813.7,2.4951]
[1746067727601,2.69991,1813.8,1813.7,1.6604]
[1746067727900,3.52031,1813.8,1813.7,1.6604]
[1746067728595,1.10272,1813.6,1813.5,1.6009]
[1746067728805,1.10272,1813.6,1813.5,1.57]
[1746067728997,1.10278,1813.5,1813.4,3.2078]
[1746067729198,1.92321,1813.5,1813.3,4.35217]
[1746067729399,1.10284,1813.4,1813.3,3.2493]
[1746067729599,1.10284,1813.4,1813.3,1.6793]
[1746067730995,1.10296,1813.2,1813.1,40.8]
[1746067731498,1.10294,1813.3,1813.1,41.90301]
[1746067732202,1.10296,1813.2,1813.1,41.90301]
[1746067732403,1.10296,1813.2,1813.1,40.8]
[1746067735907,1.10302,1813.1,1813.0,1.6838]
[1746067736397,1.10302,1813.1,1813.0,42.4838]
[1746067736804,1.10302,1813.1,1813.0,43.58688]
[1746067737405,1.10302,1813.1,1813.0,42.4838]
[1746067741611,1.10339,1812.5,1812.4,1.6547]
[1746067742008,5.9659,1812.8,1812.4,48.55815]
[1746067742211,1.10334,1812.6,1812.4,47.34615]
[1746067742608,1.10334,1812.6,1812.5,1.5967]
[1746067743705,1.10329,1812.7,1812.5,1.5967]
[1746067743907,1.10329,1812.7,1812.6,1.10333]
[1746067744208,6.35773,1813.0,1812.6,6.10328]
[1746067744408,1.10321,1812.8,1812.7,2.4618]
[1746067747307,3.2078,1812.9,1812.7,2.4618]
[1746067747512,4.31094,1812.9,1812.8,0.8209]
[1746067747812,4.31094,1812.9,1812.8,2.4539]
[1746067748115,3.2078,1812.9,1812.8,3.55711]
[1746067748306,4.31094,1812.9,1812.8,2.4539]
[1746067748611,3.2078,1812.9,1812.8,3.55711]
[1746067749312,3.2078,1812.9,1812.8,7.34511]
[1746067749708,1.10308,1813.0,1812.9,1.10313]
[1746067749909,1.10308,1813.0,1812.9,2.72203]
[1746067750110,1.10308,1813.0,1812.9,6.51003]
[1746067750312,1.10308,1813.0,1812.9,5.4069]
[1746067751014,1.10308,1813.0,1812.9,6.51004]
[1746067751313,1.10308,1813.0,1812.9,1.6189]
[1746067752618,2.80298,1813.0,1812.9,1.6189]
[1746067753414,1.10314,1812.9,1812.8,0.8209]
[1746067753713,1.10327,1812.7,1812.6,1.645]
[1746067754019,1.10339,1812.5,1812.4,0.8306]
[1746067754315,4.31119,1812.5,1812.4,2.4893]
[1746067754517,1.10339,1812.5,1812.4,43.2893]
[1746067756220,1.6206,1812.6,1812.4,40.8]
[1746067756518,2.72393,1812.6,1812.5,1.6587]
[1746067756927,1.10333,1812.6,1812.5,1.6587]
[1746067759113,7.90911,1812.7,1812.5,2.76209]
[1746067759319,4.70131,1812.7,1812.6,0.8134]
[1746067759512,4.70131,1812.7,1812.6,2.509]
[1746067760223,3.598,1812.7,1812.6,3.61233]
[1746067760419,1.10327,1812.7,1812.6,3.61233]
[1746067760719,1.10327,1812.7,1812.6,2.509]
[1746067761111,5.6564,1812.9,1812.6,2.509]
[1746067761313,1.10326,1812.8,1812.7,2.4533]
[1746067761511,1.10326,1812.8,1812.7,0.8424]
[1746067761721,1.10326,1812.8,1812.7,41.6424]
[1746067761913,1.10326,1812.8,1812.7,42.74567]
[1746067762318,1.10326,1812.8,1812.7,41.6424]
[1746067764525,2.68876,1812.8,1812.7,41.6424]
[1746067765921,2.68876,1812.8,1812.7,40.8]
[1746067768616,3.2078,1812.9,1812.7,40.8]
[1746067768823,3.2078,1812.9,1812.8,1.91671]
[1746067769021,4.31094,1812.9,1812.8,0.8135]
[1746067769528,1.10314,1812.9,1812.8,0.8135]
[1746067769926,1.10314,1812.9,1812.8,1.91671]
[1746067770728,1.10314,1812.9,1812.8,0.8135]
[1746067772827,1.10314,1812.9,1812.8,2.4079]
[1746067773030,3.60864,1812.9,1812.8,2.4079]
[1746067773325,3.60536692,1812.9,1812.8,2.4079]
[1746067774225,1.09986692,1812.9,1812.8,2.4079]
[1746067775226,1.09986692,1812.9,1812.8,6.1959]
[1746067775624,2.68776692,1812.9,1812.8,6.1959]
[1746067775820,3.51326692,1812.9,1812.8,5.3824]
[1746067776220,9.12979556,1813.5,1812.8,4.8022]
[1746067776427,1.103,1813.2,1813.0,1.10306]
[1746067776727,4.3108,1813.2,1813.1,43.2804]
[1746067776931,4.3108,1813.2,1813.1,42.4406]
[1746067777324,5.1289,1813.2,1813.1,42.4406]
[1746067777734,6.7168,1813.2,1813.1,42.4406]
[1746067778233,6.7168,1813.2,1813.1,40.8]
[1746067780932,1.10314,1812.9,1812.8,0.8398]
[1746067781140,4.31094,1812.9,1812.8,2.4935]
[1746067781433,4.31094,1812.9,1812.8,43.2935]
[1746067781736,4.31094,1812.9,1812.8,1.6537]
[1746067782135,8.09894,1812.9,1812.8,1.6537]
[1746067787441,1.10327,1812.7,1812.6,0.7865]
[1746067787839,1.10327,1812.7,1812.6,41.5865]
[1746067789044,1.10327,1812.7,1812.6,43.2093]
[1746067790632,5.96597,1812.7,1812.1,7.28619762]
[1746067790844,3.2078,1812.7,1812.3,1.6759]
[1746067791049,1.10341,1812.5,1812.3,2.77936]
[1746067791343,1.10341,1812.5,1812.4,42.4759]
[1746067791544,4.41886,1812.8,1812.4,42.4759]
[1746067791744,1.10336,1812.6,1812.5,2.4823]
[1746067792241,1.10336,1812.6,1812.5,6.2703]
[1746067792642,1.10336,1812.6,1812.5,7.37369]
[1746067792839,6.8058,1812.7,1812.6,1.10333]
[1746067792840,3.2078,1812.7,1812.6,1.10333]
[1746067793038,3.2078,1812.7,1812.6,3.63053]
[1746067793236,4.31107,1812.7,1812.6,7.5272]
[1746067793437,3.2078,1812.7,1812.6,8.63053]
[1746067793844,3.2078,1812.7,1812.6,3.63053]
[1746067794440,1.10325,1812.8,1812.6,2.5272]
[1746067794641,8.5373,1813.1,1812.7,1.6114]
[1746067794841,1.10318,1812.9,1812.8,1.1032]
[1746067795042,1.10318,1812.9,1812.8,0.8401]
[1746067795542,1.10318,1812.9,1812.8,2.4515]
[1746067797140,1.10318,1812.9,1812.8,3.55471]
[1746067797746,1.10318,1812.9,1812.8,2.4515]
[1746067798246,1.10318,1812.9,1812.8,3.55471]
[1746067798441,1.10318,1812.9,1812.8,2.4515]
[1746067799046,2.65171,1812.8,1812.7,1.10323]
[1746067799247,2.65171,1812.8,1812.7,4.89123]
[1746067799550,1.5485,1812.8,1812.7,4.89123]
[1746067800346,2.65171,1812.8,1812.7,4.89123]
[1746067800547,2.65171,1812.8,1812.7,3.788]
[1746067801147,1.10327,1812.7,1812.6,0.8513]
[1746067801548,2.79317,1812.7,1812.6,1.95463]
[1746067802338,2.79317,1812.7,1812.6,4.46723]
[1746067803651,2.79317,1812.7,1812.6,3.3639]
[1746067803854,2.79317,1812.7,1812.6,2.5716]
[1746067804551,2.79317,1812.7,1812.6,3.67493]
[1746067806149,1.5485,1812.8,1812.7,1.10327]
[1746067806343,1.5485,1812.8,1812.7,3.59847]
[1746067807155,1.5485,1812.8,1812.7,7.38647]
[1746067814650,2.5402,1813.2,1813.1,1.10302]
[1746067815163,4.7009,1813.3,1813.2,1.10296]
[1746067815356,1.688,1813.3,1813.2,1.10296]
[1746067815557,2.7909,1813.3,1813.2,1.10296]
[1746067816158,1.688,1813.3,1813.2,1.10296]
[1746067817163,0.8652,1813.4,1813.3,1.1029]
[1746067817354,0.8652,1813.4,1813.3,3.5602]
[1746067817755,2.4704,1813.4,1813.3,3.5602]
[1746067818257,2.4704,1813.4,1813.3,48.1482]
[1746067819660,0.8153,1813.5,1813.4,1.10284]
[1746067819867,3.2078,1813.7,1813.6,1.10272]
[1746067820566,4.813,1813.7,1813.6,1.10272]
[1746067821467,5.91566,1813.7,1813.6,1.10272]
[1746067821668,4.813,1813.7,1813.6,1.10272]
[1746067825076,5.91566,1813.7,1813.6,1.10272]
[1746067825280,1.10272,1813.6,1813.5,3.788]
[1746067825484,2.71862,1813.6,1813.5,3.788]
[1746067826176,1.10278,1813.5,1813.4,1.10279]
[1746067826376,3.56478,1813.5,1813.4,1.10279]
[1746067827881,2.462,1813.5,1813.3,42.4368]
[1746067828086,1.94891,1813.5,1813.4,4.89084]
[1746067828584,0.8461,1813.5,1813.4,4.89084]
[1746067829082,0.8461,1813.5,1813.4,1.10284]
[1746067830073,0.8461,1813.5,1813.4,4.89084]
[1746067830279,0.8461,1813.5,1813.4,7.42884]
[1746067830685,1.10268,1813.7,1813.6,1.10272]
[1746067832087,1.10266,1813.7,1813.6,1.10272]
[1746067833290,1.9487,1813.8,1813.7,1.10266]
[1746067833478,0.8461,1813.8,1813.7,1.10266]
[1746067834275,1.9487,1813.8,1813.7,4.89066]
[1746067834581,1.9487,1813.8,1813.7,3.788]
[1746067834787,6.9487,1813.8,1813.7,3.788]
[1746067835187,1.10278,1813.6,1813.4,1.10279]
[1746067835588,0.8485,1813.5,1813.4,1.10279]
[1746067836689,1.10263,1813.8,1813.3,53.00631]
[1746067836988,1.10266,1813.7,1813.5,1.10273]
[1746067837286,1.10266,1813.7,1813.5,4.89073]
[1746067837484,1.10266,1813.7,1813.6,1.10272]
[1746067838684,0.8353,1813.8,1813.6,1.10272]
[1746067838685,1.93795,1813.8,1813.6,1.10272]
[1746067838884,1.93794,1813.8,1813.6,1.10272]
[1746067839080,0.8353,1813.8,1813.6,1.10272]
[1746067839283,1.93795,1813.8,1813.7,1.10266]
[1746067839479,0.8353,1813.8,1813.5,1.6194]
[1746067839684,1.93791,1813.8,1813.7,1.10266]
[1746067840084,0.8353,1813.8,1813.7,1.10266]
[1746067840290,5.1457,1813.8,1813.7,3.788]
[1746067840791,5.1457,1813.8,1813.7,4.89066]
[1746067840988,1.9379,1813.8,1813.7,3.788]
[1746067841189,0.8353,1813.8,1813.7,1.10266]
[1746067841499,1.9379,1813.8,1813.7,5.75916]
[1746067841893,1.9379,1813.8,1813.7,4.6565]
[1746067842189,1.9379,1813.8,1813.7,7.6475]
[1746067843090,3.6687,1813.8,1813.7,7.6475]
[1746067844192,3.6687,1813.8,1813.7,3.8595]
[1746067845190,3.6687,1813.8,1813.7,7.6475]
[1746067845496,3.6687,1813.8,1813.7,8.75016]
[1746067845686,3.6687,1813.8,1813.7,7.6475]
[1746067845886,3.6687,1813.8,1813.7,8.75016]
[1746067846086,3.6687,1813.8,1813.7,7.6475]
[1746067847192,3.6687,1813.8,1813.7,3.8595]
[1746067849400,6.8765,1813.8,1813.7,3.8595]
[1746067849894,6.8765,1813.8,1813.7,6.0649]
[1746067850094,3.6687,1813.8,1813.7,6.0649]
[1746067851898,3.6687,1813.8,1813.7,7.16756]
[1746067852497,2.5661,1813.8,1813.7,7.16756]
[1746067852698,2.5661,1813.8,1813.7,8.00596]
[1746067852998,1.7308,1813.8,1813.7,8.00596]
[1746067853396,2.8334,1813.8,1813.7,8.00596]
[1746067855200,2.8334,1813.8,1813.7,11.79396]
[1746067855593,1.1026,1813.8,1813.7,11.79396]
[1746067856299,1.1026,1813.8,1813.7,8.00596]
[1746067858800,1.1026,1813.8,1813.7,6.9033]
[1746067859101,1.9248,1813.8,1813.7,6.9033]
[1746067860400,3.6201,1813.8,1813.7,9.74796]
[1746067861600,1.6953,1813.8,1813.7,9.74796]
[1746067861999,9.12979556,1814.2,1813.7,9.74796]
[1746067862000,12.33759556,1814.2,1813.8,2.7565]
[1746067862303,12.33759556,1814.2,1814.1,1.10241]
[1746067862797,12.33759556,1814.2,1814.1,41.90241]
[1746067863404,12.33759556,1814.2,1814.1,43.56731]
[1746067863900,13.43994556,1814.2,1814.1,40.8]
[1746067864098,15.15834556,1814.2,1814.1,40.8]
[1746067864399,16.00794556,1814.2,1814.1,40.8]
[1746067865206,6.87815,1814.2,1814.1,40.8]
[1746067866395,1.1026,1813.8,1813.7,7.0673]
[1746067866705,1.1026,1813.8,1813.7,3.8595]
[1746067866905,6.1026,1813.8,1813.7,3.8595]
[1746067867207,12.55369647,1813.8,1813.7,3.8595]
[1746067869908,12.55369961,1813.8,1813.7,6.0649]
[1746067870407,7.55369961,1813.8,1813.7,6.0649]
[1746067870607,12.55369961,1813.8,1813.7,6.0649]
[1746067871307,7.55369961,1813.8,1813.7,6.0649]
[1746067874207,7.4564,1813.8,1813.7,6.0649]
[1746067874413,7.55370099,1813.8,1813.7,6.0649]
[1746067874915,7.55370097,1813.8,1813.7,6.0649]
[1746067875308,1.1029,1813.3,1813.2,40.8]
[1746067875516,4.3107,1813.3,1813.2,40.8]
[1746067876221,6.48080075,1813.3,1813.2,40.8]
[1746067876710,6.0289,1813.3,1813.2,40.8]
[1746067877824,1.10296,1813.2,1813.1,2.4218]
[1746067878013,2.82116,1813.2,1813.1,2.4218]
[1746067878212,2.82116,1813.2,1813.1,43.2218]
[1746067879228,1.10296,1813.2,1813.1,43.2218]
[1746067879423,2.82156,1813.2,1813.1,43.2218]
[1746067880926,1.10296,1813.2,1813.1,43.2218]
[1746067881119,3.2078,1813.3,1813.1,44.32482]
[1746067881315,1.1029,1813.3,1813.2,1.7135]
[1746067882825,2.7984,1813.3,1813.2,1.7135]
[1746067883126,6.0062,1813.3,1813.2,1.7135]
[1746067883325,2.7984,1813.3,1813.2,1.7135]
[1746067884326,6.0062,1813.3,1813.2,1.7135]
[1746067886523,2.7984,1813.3,1813.2,1.7135]
[1746067887029,6.0062,1813.3,1813.2,1.7135]
[1746067888428,1.10321,1812.8,1812.7,5.8267]
[1746067888633,1.10314,1812.9,1812.8,0.7884]
[1746067888823,1.10342,1812.5,1812.3,6.93019]
[1746067889131,4.31122,1812.5,1812.4,40.8]
[1746067889723,1.10342,1812.5,1812.4,42.4857]
[1746067889925,4.31112,1812.7,1812.5,1.10337]
[1746067890125,1.10332,1812.7,1812.6,1.6857]
[1746067891934,4.31112,1812.7,1812.6,1.6857]
[1746067892632,1.10332,1812.7,1812.6,1.6857]
[1746067894232,7.90298,1812.9,1812.6,1.6857]
[1746067894432,1.10321,1812.8,1812.7,0.8005]
[1746067894634,1.10321,1812.8,1812.7,43.2243]
[1746067895625,6.7998,1812.9,1812.8,1.10321]
[1746067895626,3.2078,1812.9,1812.8,1.10321]
[1746067895821,3.2078,1812.9,1812.8,3.57051]
[1746067896134,3.2078,1812.9,1812.8,7.35851]
[1746067896432,3.2078,1812.9,1812.8,48.15851]
[1746067897538,1.1031,1813.0,1812.9,1.10314]
[1746067897725,1.10306,1813.1,1813.0,1.10308]
[1746067897930,1.10306,1813.1,1813.0,0.8279]
[1746067898332,1.10306,1813.1,1813.0,3.63808]
[1746067898533,4.696,1813.2,1813.1,1.10302]
[1746067898729,4.696,1813.2,1813.1,2.81012]
[1746067898925,4.696,1813.2,1813.1,1.7071]
[1746067900038,4.696,1813.2,1813.0,0.8279]
[1746067900039,1.10314,1812.9,1812.8,41.6435]
[1746067900237,1.10314,1812.9,1812.8,42.4796]
[1746067901337,1.10314,1812.9,1812.8,44.1796]
[1746067902737,2.70404,1812.9,1812.8,44.1796]
[1746067903138,5.91184,1812.9,1812.8,44.588]
[1746067904233,4.8087,1812.9,1812.8,40.8]
[1746067904434,4.8087,1812.9,1812.8,41.90321]
[1746067904734,4.8087,1812.9,1812.8,43.55941]
[1746067904940,5.91184,1812.9,1812.8,42.4562]
[1746067905241,4.8087,1812.9,1812.8,43.55941]
[1746067905538,5.91184,1812.9,1812.8,42.4562]
[1746067905735,5.91184,1812.9,1812.8,43.55941]
[1746067906540,2.70404,1812.9,1812.8,42.4562]
[1746067909639,2.70404,1812.9,1812.8,40.8]
[1746067911538,10.1909,1812.9,1811.8,10.84669709]
[1746067911742,1.10369,1812.0,1811.8,10.84669709]
[1746067911938,1.10369,1812.0,1811.9,12.50599709]
[1746067912243,2.75859,1812.0,1811.9,53.30599709]
[1746067912636,4.31144,1812.1,1811.9,53.30599709]
[1746067912836,1.10364,1812.1,1812.0,1.5815]
[1746067913036,1.10364,1812.1,1812.0,2.3723]
[1746067913638,4.31144,1812.1,1812.0,2.3723]
[1746067916437,6.01934,1812.1,1812.0,2.3723]
[1746067919846,1.10369,1812.0,1811.9,41.6322]
[1746067920048,2.68249,1812.0,1811.9,41.6322]
[1746067920345,2.68249,1812.0,1811.9,40.8]
[1746067923241,5.89029,1812.0,1811.9,40.8]
[1746067925851,5.89029,1812.0,1811.9,42.3934]
[1746067927651,1.10375,1811.9,1811.8,2.2077]
[1746067927856,1.10395,1811.6,1811.4,2.4486]
[1746067928056,1.10395,1811.6,1811.5,2.6866]
[1746067928358,1.10395,1811.6,1811.5,43.4866]
[1746067928650,1.10395,1811.6,1811.5,1.5826]
[1746067929158,1.10395,1811.6,1811.5,5.3706]
[1746067929848,1.10395,1811.6,1811.5,46.1706]
[1746067930353,1.10395,1811.6,1811.5,42.3826]
[1746067930752,4.31172,1811.7,1811.5,42.3826]
[1746067930953,4.31172,1811.7,1811.6,3.57524]
[1746067931355,4.31172,1811.7,1811.6,2.4713]
[1746067931757,4.31172,1811.7,1811.6,3.57524]
[1746067931957,4.31172,1811.7,1811.6,2.4713]